bitfinex/quotes_SOLUSD_20241117
["timestamp","ask_amount","ask_price","bid_price","bid_amount"]
[1731887549537,0.12549,237.14,237.1,10.544]
[1731887554137,0.21916462,237.13,237.1,10.544]
[1731887560318,20.0,237.2,237.1,10.544]
[1731887560319,4.2154,237.23,237.11,6.55580803]
[1731887560517,6.55580803,237.21,237.1,10.544]
[1731887560719,0.09367462,237.16,237.1,10.544]
[1731887561627,0.34465462,237.16,237.1,10.544]
[1731887563543,0.09367462,237.14,237.1,10.544]
[1731887563755,0.34465462,237.14,237.1,10.544]
[1731887565725,0.25098,237.21,237.1,17.09980803]
[1731887565926,0.09367462,237.18,237.1,17.09980803]
[1731887566122,20.0,237.21,237.12,6.55580803]
[1731887566335,6.55580803,237.22,237.14,6.55580803]
[1731887567637,0.12549,237.2,237.15,4.2167]
[1731887568651,0.21916462,237.2,237.15,4.2167]
[1731887568948,0.09367462,237.19,237.15,4.2167]
[1731887569146,0.09367462,237.19,237.15,14.7585]
[1731887572138,0.09367462,237.22,237.15,14.7585]
[1731887572948,0.25098,237.21,237.15,14.7585]
[1731887573458,0.09367462,237.2,237.16,6.55580803]
[1731887574339,20.0,237.26,237.19,6.55580803]
[1731887574658,0.09367462,237.24,237.19,6.55580803]
[1731887575151,10.76980803,237.3,237.21,6.55580803]
[1731887575355,0.09367462,237.29,237.21,6.55580803]
[1731887576169,4.30797462,237.29,237.21,10.77130803]
[1731887576459,0.09367462,237.25,237.21,10.77130803]
[1731887577636,162.3,237.37,237.23,6.55580803]
[1731887577840,4.2128,237.37,237.28,6.55580803]
[1731887578034,4.6795731,237.39,237.3,6.55580803]
[1731887578258,4.6795731,237.39,237.34,6.55580803]
[1731887578259,0.4670731,237.39,237.34,6.55580803]
[1731887579544,0.4670731,237.39,237.35,4.2131]
[1731887581562,0.4670731,237.39,237.35,34.746]
[1731887582547,0.4670731,237.39,237.38,6.55580803]
[1731887583543,0.4670731,237.39,237.38,30.76840803]
[1731887583862,6.62220933,237.49,237.39,26.007]
[1731887584068,0.09367462,237.48,237.45,6.55580803]
[1731887584264,6.62220933,237.49,237.45,6.55580803]
[1731887585143,6.62220933,237.49,237.47,28.35370803]
[1731887585457,6.55580803,237.59,237.48,14.738]
[1731887585644,0.09367462,237.54,237.48,14.738]
[1731887585843,6.55580803,237.53,237.48,10.5272]
[1731887586047,0.09367462,237.52,237.47,21.7979]
[1731887586248,4.209,237.59,237.47,36.5364]
[1731887586462,6.55580803,237.53,237.47,36.5364]
[1731887586974,0.09367462,237.52,237.47,36.5364]
[1731887587475,0.34465462,237.52,237.47,36.5364]
[1731887587846,6.90046265,237.52,237.47,36.5364]
[1731887588250,0.34465462,237.52,237.47,43.09220803]
[1731887588761,20.0,237.6,237.47,43.09220803]
[1731887588953,4.2084,237.62,237.51,6.55580803]
[1731887589167,0.4670731,237.63,237.53,6.55580803]
[1731887589470,0.4670731,237.63,237.57,6.55580803]
[1731887589883,0.09367462,237.62,237.55,6.55580803]
[1731887590678,0.09367462,237.62,237.54,10.5242]
[1731887590679,0.34465462,237.6,237.54,10.5242]
[1731887590968,0.34465462,237.58,237.54,10.5242]
[1731887591167,0.09367462,237.56,237.5,6.55580803]
[1731887591358,0.09367462,237.54,237.5,6.55580803]
[1731887592348,0.09367462,237.54,237.51,4.2103]
[1731887592768,6.55580803,237.59,237.51,4.2103]
[1731887592971,0.12549,237.58,237.52,6.55580803]
[1731887593174,6.55580803,237.59,237.52,6.55580803]
[1731887593475,0.09367462,237.57,237.52,6.55580803]
[1731887594164,0.09367462,237.55,237.51,14.7361]
[1731887594762,10.76440803,237.61,237.53,6.55580803]
[1731887595088,0.25098,237.6,237.53,6.55580803]
[1731887595379,0.09367462,237.59,237.53,6.55580803]
[1731887595969,0.4670731,237.63,237.55,6.55580803]
[1731887596175,0.12549,237.62,237.55,6.55580803]
[1731887596473,162.3,237.7,237.55,6.55580803]
[1731887596474,162.3,237.84,237.62,20.0]
[1731887596671,6.55580803,237.79,237.7,6.55580803]
[1731887596975,6.55580803,237.75,237.62,20.0]
[1731887597150,6.55580803,237.75,237.66,6.55580803]
[1731887597552,4.2056,237.78,237.67,4.2075]
[1731887597778,6.55580803,237.78,237.68,6.55580803]
[1731887598270,4.2048,237.82,237.69,10.19204128]
[1731887598473,10.19204128,237.79,237.69,10.19204128]
[1731887598781,0.09367462,237.78,237.69,10.19204128]
[1731887598973,0.09367462,237.76,237.7,14.7243]
[1731887599160,10.19204128,237.77,237.7,14.7243]
[1731887599565,0.25098,237.76,237.7,14.7243]
[1731887600074,0.09367462,237.75,237.7,14.7243]
[1731887600292,0.09367462,237.72,237.65,10.5195]
[1731887600459,0.34465462,237.72,237.66,4.2076]
[1731887601369,0.34465462,237.72,237.65,10.5195]
[1731887601959,0.34465462,237.72,237.65,20.5750614]
[1731887602401,0.34465462,237.72,237.65,14.59082012]
[1731887603256,0.34465462,237.68,237.65,10.38302012]
[1731887603856,0.34465462,237.68,237.63,4.2081]
[1731887604579,0.34465462,237.68,237.61,23.0078]
[1731887604580,0.34465462,237.64,237.61,6.4554]
[1731887604769,0.34465462,237.62,237.61,6.4554]
[1731887604971,10.19204128,237.67,237.61,10.6638]
[1731887605856,0.09367462,237.66,237.61,10.6638]
[1731887606866,0.09367462,237.66,237.61,21.1852]
[1731887607383,0.21916462,237.64,237.61,6.4554]
[1731887607689,0.34465462,237.64,237.61,6.4554]
[1731887608560,10.19204128,237.69,237.61,20.85584128]
[1731887608756,10.19204128,237.71,237.63,10.19204128]
[1731887608961,10.19204128,237.73,237.65,10.19204128]
[1731887609459,0.09367462,237.72,237.66,4.2076]
[1731887609681,0.09367462,237.7,237.66,4.2076]
[1731887610376,0.09367462,237.68,237.66,4.2076]
[1731887610567,0.09367462,237.68,237.64,14.7281]
[1731887614575,0.09367462,237.66,237.61,6.4554]
[1731887614761,0.09367462,237.64,237.61,10.6639]
[1731887617790,0.21916462,237.64,237.61,6.4554]
[1731887618296,0.21916462,237.62,237.59,10.5221]
[1731887618493,0.09367462,237.6,237.56,10.6074]
[1731887619088,0.09367462,237.6,237.56,21.131]
[1731887620398,0.21916462,237.6,237.56,21.131]
[1731887621370,0.21916462,237.58,237.54,19.4957]
[1731887621980,0.09367462,237.56,237.54,15.2861]
[1731887622183,0.09367462,237.56,237.52,4.21]
[1731887622392,0.21916462,237.56,237.52,4.21]
[1731887624582,0.12549,237.55,237.51,10.5255]
[1731887624891,0.21916462,237.52,237.5,6.3981]
[1731887625493,0.21916462,237.52,237.5,10.6085]
[1731887626011,0.34465462,237.51,237.5,6.3981]
[1731887626186,0.21916462,237.5,237.47,4.2109]
[1731887626383,23.776884,237.52,237.47,14.40294128]
[1731887626681,4.2095,237.56,237.52,4.2101]
[1731887626682,0.25098,237.56,237.52,4.2101]
[1731887627303,0.09367462,237.55,237.52,14.7355]
[1731887627497,10.2857159,237.55,237.47,10.19204128]
[1731887627706,10.2857159,237.55,237.47,20.71944128]
[1731887627998,0.21916462,237.53,237.49,10.19204128]
[1731887628202,0.09367462,237.51,237.49,10.19204128]
[1731887628676,0.09367462,237.51,237.49,14.40264128]
[1731887628882,0.12549,237.54,237.49,24.92934128]
[1731887629183,0.09367462,237.53,237.49,24.92934128]
[1731887630310,0.12549,237.52,237.49,24.92934128]
[1731887632698,0.12549,237.52,237.49,14.7373]
[1731887632908,0.12549,237.52,237.47,14.40294128]
[1731887633096,0.12549,237.52,237.47,4.2109]
[1731887633291,0.12549,237.52,237.47,24.93054128]
[1731887638905,0.21916462,237.51,237.47,24.93054128]
[1731887640184,0.21916462,237.51,237.48,6.53449047]
[1731887641506,182.3,237.6,237.5,6.53449047]
[1731887641507,162.3,237.6,237.5,6.53449047]
[1731887641710,10.74299047,237.62,237.53,6.53449047]
[1731887642211,4.2085,237.62,237.49,14.7374]
[1731887642410,10.29991956,237.61,237.52,10.20624494]
[1731887642796,0.09367462,237.59,237.53,4.2099]
[1731887643393,0.21916462,237.57,237.53,4.2099]
[1731887643705,0.09367462,237.55,237.53,4.2099]
[1731887644401,0.09367462,237.55,237.5,24.94304494]
[1731887645001,0.21916462,237.55,237.5,24.94304494]
[1731887645408,0.09367462,237.53,237.5,24.94304494]
[1731887646293,0.21916462,237.53,237.5,10.5263]
[1731887646494,0.09367462,237.51,237.5,10.5263]
[1731887647198,0.09367462,237.51,237.44,21.6842]
[1731887647401,0.09367462,237.49,237.46,10.528]
[1731887648622,0.09367462,237.49,237.46,20.73424494]
[1731887649708,0.09367462,237.47,237.41,14.7418]
[1731887649887,0.09367462,237.47,237.31,0.2]
[1731887649888,0.09367462,237.4,237.36,4.2129]
[1731887650091,10.29991956,237.38,237.33,6.1714]
[1731887650397,33.98312894,237.4,237.32,24.95364494]
[1731887650723,0.09367462,237.36,237.32,24.95364494]
[1731887650889,0.09367462,237.34,237.32,14.7474]
[1731887651310,10.20624494,237.4,237.32,24.95364494]
[1731887651508,24.027864,237.39,237.32,24.95364494]
[1731887651815,0.09367462,237.38,237.32,24.95364494]
[1731887652889,0.09367462,237.38,237.32,14.7474]
[1731887653695,10.29991956,237.38,237.32,14.7474]
[1731887653893,0.09367462,237.36,237.32,14.7474]
[1731887656410,0.12549,237.33,237.28,4.2143]
[1731887656616,10.29991956,237.32,237.27,32.6812]
[1731887656919,24.027864,237.33,237.27,10.5362]
[1731887656920,0.09367462,237.28,237.27,10.5362]
[1731887657128,0.09367462,237.28,237.24,4.215]
[1731887657322,0.09367462,237.26,237.22,30.7275]
[1731887657991,0.09367462,237.26,237.22,14.7539]
[1731887659210,0.12549,237.25,237.22,14.7539]
[1731887659526,0.21916462,237.24,237.22,14.7539]
[1731887659714,0.21916462,237.24,237.22,10.5386]
[1731887662723,0.12549,237.28,237.22,10.5386]
[1731887662925,10.20624494,237.29,237.22,10.5386]
[1731887663637,0.09367462,237.28,237.22,10.5386]
[1731887664120,0.34465462,237.28,237.22,10.5386]
[1731887665115,0.09367462,237.26,237.22,10.5386]
[1731887665318,0.21916462,237.26,237.22,10.5386]
[1731887665520,0.09367462,237.24,237.22,10.5386]
[1731887672333,0.09367462,237.24,237.19,6.55041905]
[1731887674536,0.09367462,237.24,237.2,14.7554]
[1731887675315,7.9542,237.38,237.23,6.55041905]
[1731887675513,6.55041905,237.37,237.29,6.55041905]
[1731887676122,0.09367462,237.32,237.25,21.69631905]
[1731887676741,0.21916462,237.32,237.26,4.2147]
[1731887676913,23.99604862,237.32,237.26,4.2147]
[1731887677127,0.09367462,237.3,237.25,25.6832]
[1731887677315,23.99604862,237.3,237.25,25.6832]
[1731887678025,0.09367462,237.28,237.25,25.6832]
[1731887678337,0.21916462,237.28,237.25,25.6832]
[1731887678835,0.21916462,237.28,237.25,29.8981]
[1731887679422,0.12549,237.3,237.25,29.8981]
[1731887679615,0.25098,237.3,237.25,29.8981]
[1731887680031,0.09367462,237.29,237.25,36.44851905]
[1731887680243,0.21916462,237.29,237.25,36.44851905]
[1731887681046,0.21916462,237.29,237.25,29.8981]
[1731887682628,0.12549,237.28,237.25,10.5373]
[1731887685829,0.09367462,237.27,237.22,4.2153]
[1731887686033,0.09367462,237.25,237.22,4.2153]
[1731887686234,0.21916462,237.25,237.2,10.5392]
[1731887686438,0.21916462,237.25,237.2,14.7549]
[1731887688143,0.09367462,237.23,237.2,14.7549]
[1731887691049,20.67195767,237.28,237.2,21.30531905]
[1731887691223,6.55041905,237.3,237.22,6.55041905]
[1731887691422,20.0,237.29,237.22,6.55041905]
[1731887691824,20.0,237.29,237.2,21.30531905]
[1731887693140,162.3,237.33,237.2,14.7549]
[1731887693141,0.21916462,237.27,237.2,14.7549]
[1731887693340,0.09367462,237.25,237.2,14.7549]
[1731887693851,0.21916462,237.25,237.2,14.7549]
[1731887700247,6.55041905,237.28,237.2,21.30531905]
[1731887700456,6.62220933,237.5,237.27,16.6049]
[1731887700457,162.3,237.43,237.27,16.6049]
[1731887700666,168.85041905,237.42,237.33,6.55041905]
[1731887700953,0.09367462,237.41,237.33,6.55041905]
[1731887701951,44.027864,237.41,237.33,6.55041905]
[1731887702153,48.240064,237.41,237.33,6.55041905]
[1731887702631,6.55041905,237.36,237.27,16.6049]
[1731887702832,0.09367462,237.34,237.28,10.76481905]
[1731887704034,182.3,237.41,237.32,6.55041905]
[1731887704235,4.2118,237.43,237.34,6.55041905]
[1731887704857,6.55041905,237.42,237.34,6.55041905]
[1731887705264,24.027864,237.41,237.34,6.55041905]
[1731887705557,6.55041905,237.47,237.38,6.55041905]
[1731887705754,162.3,237.48,237.38,6.55041905]
[1731887705755,162.3,237.56,237.46,6.55041905]
[1731887705959,6.55041905,237.57,237.48,6.55041905]
[1731887706130,4.2091,237.58,237.48,6.55041905]
[1731887706440,10.2078217,237.59,237.51,10.2078217]
[1731887706759,0.09367462,237.58,237.5,15.9873]
[1731887707054,10.2078217,237.59,237.5,15.9873]
[1731887707352,0.09367462,237.58,237.51,10.2078217]
[1731887707731,24.12153862,237.58,237.51,10.2078217]
[1731887707945,0.25098,237.56,237.51,10.2078217]
[1731887708359,24.2082,237.63,237.53,10.2078217]
[1731887708531,10.2078217,237.62,237.53,10.2078217]
[1731887708727,0.09367462,237.61,237.55,10.2078217]
[1731887709335,0.09367462,237.61,237.5,30.7239]
[1731887709336,10.2078217,237.62,237.53,14.4177217]
[1731887709535,0.25098,237.61,237.53,14.4177217]
[1731887710146,0.09367462,237.6,237.53,14.4177217]
[1731887710337,0.21916462,237.6,237.53,14.4177217]
[1731887711249,10.42698632,237.58,237.51,10.2078217]
[1731887711449,0.21916462,237.56,237.51,10.2078217]
[1731887714555,4.2071,237.69,237.55,10.2078217]
[1731887714736,10.2078217,237.68,237.6,10.2078217]
[1731887715367,0.09367462,237.67,237.6,10.2078217]
[1731887715855,4.2076,237.67,237.6,10.2078217]
[1731887716063,0.25098,237.66,237.6,10.2078217]
[1731887716449,0.09367462,237.65,237.6,10.2078217]
[1731887716655,0.09367462,237.65,237.58,10.2078217]
[1731887718035,0.09367462,237.65,237.6,10.2078217]
[1731887718540,0.09367462,237.65,237.61,22.977]
[1731887718736,10.2078217,237.7,237.62,10.2078217]
[1731887718940,4.2068,237.71,237.64,10.2078217]
[1731887719159,10.2078217,237.76,237.68,10.2078217]
[1731887719642,0.09367462,237.75,237.68,10.2078217]
[1731887720165,4.29987462,237.75,237.68,10.2078217]
[1731887720468,4.2062,237.75,237.68,10.2078217]
[1731887720677,0.09367462,237.74,237.68,10.2078217]
[1731887720847,24.2052,237.8,237.69,6.64]
[1731887721166,20.0,237.77,237.69,6.64]
[1731887722055,10.2078217,237.76,237.7,4.2069]
[1731887722648,0.09367462,237.75,237.69,6.64]
[1731887722844,0.09367462,237.73,237.69,6.64]
[1731887723155,10.2078217,237.72,237.69,6.64]
[1731887724366,0.09367462,237.71,237.69,6.64]
[1731887724546,0.34465462,237.71,237.69,6.64]
[1731887725450,10.30149632,237.7,237.69,6.64]
[1731887726363,0.34465462,237.69,237.63,6.64]
[1731887726875,0.09367462,237.69,237.63,6.64]
[1731887727248,20.0,237.73,237.64,10.2078217]
[1731887727572,0.25098,237.72,237.64,10.2078217]
[1731887727756,0.09367462,237.71,237.64,10.2078217]
[1731887728369,0.21916462,237.71,237.64,10.2078217]
[1731887728782,14.63378632,237.71,237.64,10.2078217]
[1731887729445,0.21916462,237.68,237.63,6.64]
[1731887732578,0.21916462,237.68,237.6,10.2078217]
[1731887732579,4.2041,237.86,237.68,20.0]
[1731887732879,4.2041,237.86,237.75,10.2078217]
[1731887732880,10.2078217,237.83,237.75,10.2078217]
[1731887733067,0.09367462,237.82,237.75,10.2078217]
[1731887733868,0.12549,237.82,237.75,14.4138217]
[1731887734757,0.21916462,237.82,237.75,14.4138217]
[1731887734966,0.09367462,237.78,237.73,10.5159]
[1731887735285,10.2078217,237.81,237.73,20.7237217]
[1731887736385,10.2078217,237.81,237.73,24.9301217]
[1731887738565,0.4670731,237.87,237.77,10.2078217]
[1731887738766,0.4670731,237.87,237.81,10.2078217]
[1731887739958,0.4670731,237.87,237.82,4.2048]
[1731887742979,0.4670731,237.87,237.85,10.2078217]
[1731887743357,10.2078217,237.98,237.86,6.64]
[1731887743682,10.2078217,237.98,237.9,10.2078217]
[1731887744069,0.09367462,237.97,237.9,10.2078217]
[1731887744584,10.2078217,237.96,237.88,10.2078217]
[1731887745082,4.2024,237.96,237.88,14.4115217]
[1731887745277,24.54685462,237.97,237.88,24.9210217]
[1731887745981,4.54685462,237.97,237.88,24.9210217]
[1731887746190,4.2019,237.99,237.9,10.2078217]
[1731887746682,14.4095217,238.0,237.92,10.2078217]
[1731887746882,14.4092217,238.02,237.92,10.2078217]
[1731887747063,4.2012,238.03,237.94,10.2078217]
[1731887747757,24.2012,238.03,237.94,10.2078217]
[1731887748283,20.0,238.01,237.94,10.2078217]
[1731887748584,20.0,238.01,237.93,26.4853]
[1731887748585,10.30149632,238.0,237.93,26.4853]
[1731887749789,0.09367462,237.98,237.93,15.9781]
[1731887750378,0.25098,237.99,237.93,15.9781]
[1731887750379,20.0,238.01,237.93,15.9781]
[1731887750565,0.25098,238.02,237.94,10.2078217]
[1731887750767,30.2078217,238.03,237.94,10.2078217]
[1731887750990,10.2078217,238.03,237.96,10.2078217]
[1731887751284,10.2078217,238.03,237.94,10.2078217]
[1731887751473,0.09367462,238.0,237.94,10.2078217]
[1731887751673,0.09367462,238.0,237.93,26.4853]
[1731887751988,0.09367462,237.98,237.93,26.4853]
[1731887752287,0.21916462,237.98,237.93,26.4853]
[1731887752669,10.2078217,237.99,237.93,20.1809]
[1731887752878,10.2078217,238.01,237.93,30.3887217]
[1731887753179,10.2078217,238.01,237.93,40.8959217]
[1731887753490,10.2078217,238.03,237.95,10.2078217]
[1731887754588,10.2078217,238.03,237.96,21.1288]
[1731887755681,4.2007,238.06,237.96,21.1288]
[1731887755682,10.2078217,238.05,237.97,10.2078217]
[1731887756068,20.0,238.04,237.97,10.2078217]
[1731887756266,20.0,238.04,237.97,14.4099217]
[1731887757487,14.4086217,238.05,237.97,14.4099217]
[1731887757862,10.2078217,238.03,237.97,4.2021]
[1731887760376,10.2078217,238.01,237.96,6.4206]
[1731887761392,4.2011,238.03,237.96,6.4206]
[1731887761393,10.2078217,237.99,237.96,6.4206]
[1731887762799,10.2078217,237.99,237.93,15.9781]
[1731887763287,10.2078217,237.95,237.93,15.9781]
[1731887763692,10.2078217,237.95,237.9,6.4206]
[1731887763895,10.2078217,237.93,237.9,6.4206]
[1731887764472,10.2078217,237.95,237.9,6.4206]
[1731887765570,10.2078217,237.95,237.9,10.6239]
[1731887765770,10.2078217,237.97,237.9,10.6239]
[1731887765966,20.0,237.98,237.91,10.2078217]
[1731887766403,10.2078217,237.99,237.91,10.2078217]
[1731887766773,10.2078217,237.99,237.92,4.203]
[1731887767882,10.2078217,237.99,237.92,14.7107]
[1731887768684,14.4096217,237.99,237.92,14.7107]
[1731887769206,14.4096217,237.99,237.9,6.4206]
[1731887769207,10.2078217,237.95,237.9,6.4206]
[1731887770289,4.2009,238.04,237.94,10.2078217]
[1731887770499,14.4087217,238.04,237.96,10.2078217]
[1731887771308,14.4087217,238.04,237.95,4.2025]
[1731887773403,10.2078217,238.02,237.95,4.2025]
[1731887773903,4.2015,238.01,237.95,10.5064]
[1731887774277,4.2015,238.01,237.95,14.7089]
[1731887775396,14.4092217,238.02,237.95,10.5064]
[1731887776000,10.2078217,237.98,237.91,4.2031]
[1731887777596,10.2078217,237.98,237.9,6.4206]
[1731887777597,10.2078217,237.94,237.9,6.4206]
[1731887778083,10.2078217,237.94,237.9,10.624]
[1731887778279,10.2078217,237.94,237.9,6.4206]
[1731887778604,10.2078217,237.94,237.9,10.6239]
[1731887778895,10.2078217,237.91,237.88,15.0615]
[1731887779099,10.2078217,237.89,237.84,10.3848]
[1731887779276,10.2078217,237.89,237.84,6.1804]
[1731887779483,10.2078217,237.87,237.84,6.1804]
[1731887779985,28.32423862,237.94,237.84,6.1804]
[1731887779986,10.2078217,237.89,237.84,6.1804]
[1731887780176,10.2078217,237.87,237.84,6.1804]
[1731887780375,10.2078217,237.87,237.82,15.293]
[1731887780376,10.2078217,237.85,237.82,15.293]
[1731887782001,10.2078217,237.87,237.82,15.293]
[1731887783095,14.4118217,237.87,237.82,15.293]
[1731887783503,10.2078217,237.85,237.82,15.293]
[1731887783795,10.2078217,237.85,237.79,4.2052]
[1731887784096,10.2078217,237.83,237.77,26.6691]
[1731887784302,10.2078217,237.89,237.79,10.2078217]
[1731887784994,14.4116217,237.89,237.8,4.2052]
[1731887785681,10.2078217,237.87,237.8,4.2052]
[1731887785882,3.4578217,237.87,237.8,4.2052]
[1731887786292,10.2078217,237.9,237.81,10.2078217]
[1731887787179,4.2027,237.94,237.8,10.513]
[1731887787180,10.2078217,237.86,237.8,10.513]
[1731887787412,0.1,238.04,237.82,6.4749]
[1731887787702,10.2078217,237.96,237.87,10.2078217]
[1731887787903,10.2078217,237.96,237.89,10.2078217]
[1731887788083,10.2078217,237.96,237.87,10.2078217]
[1731887788278,14.4102217,237.96,237.88,4.2038]
[1731887788711,14.4102217,237.96,237.87,10.2078217]
[1731887788884,14.4102217,237.96,237.87,14.4117217]
[1731887789085,14.4102217,237.96,237.87,24.9216217]
[1731887789481,10.2078217,237.92,237.85,10.2078217]
[1731887789694,10.2078217,237.9,237.83,4.2046]
[1731887791382,10.2078217,237.86,237.82,21.1914]
[1731887791612,10.2078217,237.86,237.82,6.4749]
[1731887792385,10.2078217,237.9,237.82,6.4749]
[1731887792602,10.2078217,237.9,237.82,21.1917]
[1731887793688,4.29657462,237.93,237.82,21.1917]
[1731887793894,10.2078217,237.89,237.82,21.1917]
[1731887795900,10.2078217,237.87,237.81,15.9885]
[1731887796099,24.12153862,237.88,237.81,15.9885]
[1731887796100,10.2078217,237.83,237.81,15.9885]
[1731887796300,10.2078217,237.85,237.81,15.9885]
[1731887796792,43.87055862,237.82,237.72,10.5162]
[1731887796995,10.2078217,237.78,237.72,10.5162]
[1731887797533,10.2078217,237.78,237.72,14.7228]
[1731887797691,10.2078217,237.78,237.72,10.5162]
[1731887798095,10.2078217,237.82,237.74,10.2078217]
[1731887798494,10.2078217,237.82,237.72,20.7240217]
[1731887799112,0.09367462,237.79,237.72,20.7240217]
[1731887799998,0.09367462,237.79,237.72,24.9306217]
[1731887800407,4.29907462,237.79,237.72,24.9306217]
[1731887801008,10.2078217,237.78,237.68,14.4151217]
[1731887801908,10.2078217,237.76,237.68,14.4151217]
[1731887802111,10.2078217,237.76,237.68,24.9334217]
[1731887802319,14.4134217,237.78,237.68,24.9334217]
[1731887802488,10.2078217,237.76,237.68,24.9334217]
[1731887803714,10.2078217,237.76,237.68,14.7256]
[1731887804221,14.4138217,237.76,237.68,14.7256]
[1731887805118,10.2078217,237.74,237.68,14.7256]
[1731887805996,0.09367462,237.73,237.67,15.3503]
[1731887806196,14.4141217,237.74,237.67,19.5577]
[1731887806391,14.4141217,237.74,237.67,15.3503]
[1731887806806,10.2078217,237.72,237.67,15.3503]
[1731887807222,10.2078217,237.7,237.63,14.7282]
[1731887807517,10.2078217,237.7,237.61,25.5581217]
[1731887807518,10.2078217,237.66,237.61,15.3503]
[1731887807821,10.2078217,237.64,237.61,15.3503]
[1731887810117,10.2078217,237.64,237.58,10.5224]
[1731887810118,14.4159217,237.64,237.58,10.5224]
[1731887810696,20.0,237.63,237.56,31.9748217]
[1731887810899,20.0,237.63,237.56,21.767]
[1731887811822,24.2082,237.63,237.56,21.767]
[1731887812426,24.2082,237.63,237.56,25.9763]
[1731887813016,10.30149632,237.62,237.56,21.767]
[1731887813332,10.30149632,237.6,237.56,15.7182]
[1731887814718,14.51019632,237.6,237.56,15.7182]
[1731887814915,10.2078217,237.62,237.56,15.7182]
[1731887815118,20.0,237.63,237.56,40.6589217]
[1731887815711,10.2078217,237.68,237.6,10.2078217]
[1731887816031,10.2078217,237.72,237.64,10.2078217]
[1731887816227,14.4140217,237.74,237.64,10.2078217]
[1731887816409,14.4140217,237.74,237.66,10.2078217]
[1731887816605,0.09367462,237.73,237.66,10.2078217]
[1731887816801,14.4140217,237.74,237.66,10.2078217]
[1731887817006,10.2078217,237.72,237.64,10.2078217]
[1731887817743,10.2078217,237.72,237.64,24.9358217]
[1731887818702,20.0,237.73,237.66,10.2078217]
[1731887820119,10.2078217,237.74,237.66,41.2945217]
[1731887820323,14.4138217,237.76,237.68,10.2078217]
[1731887821523,24.2062,237.75,237.68,10.2078217]
[1731887822408,24.2062,237.75,237.66,41.2945217]
[1731887823038,10.2078217,237.72,237.66,16.3599]
[1731887823209,4.55095462,237.74,237.66,20.5675]
[1731887823210,20.0,237.73,237.66,20.5675]
[1731887823409,20.0,237.73,237.66,26.5677217]
[1731887823710,20.0,237.73,237.66,30.7753217]
[1731887824034,14.4141217,237.74,237.66,30.7753217]
[1731887824218,4.2063,237.74,237.68,10.2078217]
[1731887825628,20.0,237.75,237.68,10.2078217]
[1731887825834,20.0,237.75,237.7,10.2078217]
[1731887826016,20.0,237.77,237.7,10.2078217]
[1731887826821,0.09367462,237.76,237.7,10.2078217]
[1731887827015,0.09367462,237.76,237.68,20.7261217]
[1731887827336,20.0,237.75,237.68,20.7261217]
[1731887827563,20.0,237.75,237.68,24.9334217]
[1731887828923,24.2061,237.75,237.68,24.9334217]
[1731887830212,20.0,237.73,237.66,16.3599]
[1731887830713,20.0,237.73,237.66,20.5675]
[1731887831643,24.2066,237.73,237.66,20.5675]
[1731887831817,10.2078217,237.68,237.66,16.3599]
[1731887832013,10.2078217,237.68,237.62,6.134]
[1731887832325,0.34465462,237.71,237.62,6.134]
[1731887832326,10.2078217,237.66,237.62,6.134]
[1731887832535,10.2078217,237.68,237.62,6.134]
[1731887832842,10.2078217,237.66,237.62,6.134]
[1731887833414,10.2078217,237.64,237.61,15.7679]
[1731887833636,10.2078217,237.62,237.61,15.7679]
[1731887833918,10.2078217,237.62,237.55,36.8131217]
[1731887834224,20.0,237.61,237.55,36.8131217]
[1731887835428,10.2078217,237.62,237.55,36.8131217]
[1731887835624,20.0,237.61,237.55,36.8131217]
[1731887835820,10.2078217,237.6,237.55,22.3958]
[1731887836617,10.2078217,237.6,237.55,15.7679]
[1731887837447,4.2084,237.62,237.51,14.4181217]
[1731887837448,10.2078217,237.58,237.51,10.2078217]
[1731887837619,4.2092,237.57,237.51,10.2078217]
[1731887838239,10.2078217,237.58,237.51,10.2078217]
[1731887838426,10.2078217,237.58,237.51,14.4181217]
[1731887839344,20.0,237.64,237.53,10.2078217]
[1731887839345,10.2078217,237.62,237.53,10.2078217]
[1731887839641,24.2087,237.61,237.53,14.4177217]
[1731887840322,10.30149632,237.6,237.53,10.2078217]
[1731887840638,10.30149632,237.6,237.51,24.9438217]
[1731887841227,10.2078217,237.58,237.51,24.9438217]
[1731887841827,14.4169217,237.58,237.51,24.9438217]
[1731887842240,4.2091,237.58,237.51,24.9438217]